bitfinex-derivatives/quotes_ETHF0:USTF0_20251013
["timestamp","ask_amount","ask_price","bid_price","bid_amount"]
[1760381867728,1.4111,4226.5,4226.4,0.2288]
[1760381868227,1.95559879,4226.5,4226.4,0.2288]
[1760381868427,1.95559879,4226.5,4226.4,0.1144]
[1760381868734,0.7991,4226.4,4226.3,3.63331]
[1760381869032,0.7991,4226.4,4226.3,3.73051]
[1760381869327,1.22461,4226.4,4226.3,0.0972]
[1760381869729,1.22461,4226.4,4226.3,0.52272]
[1760381870324,0.7991,4226.4,4226.3,0.52272]
[1760381870522,1.76927505,4226.4,4226.3,0.0972]
[1760381870721,0.2359,4226.2,4226.1,0.42553]
[1760381871031,1.22466,4225.9,4225.8,0.10022875]
[1760381871332,1.22466,4225.9,4225.8,0.00302875]
[1760381871532,1.46466,4225.9,4225.8,0.00302875]
[1760381871834,1.46466,4225.9,4225.8,0.19742875]
[1760381872128,3.2078,4226.3,4225.8,0.10022875]
[1760381872328,3.5669,4226.3,4226.2,0.1892]
[1760381872630,4.33876467,4226.3,4226.2,0.1892]
[1760381872829,1.13096467,4226.3,4226.2,0.1892]
[1760381873032,0.90366467,4226.3,4226.2,0.61473]
[1760381873229,0.54456467,4226.3,4226.2,0.67383]
[1760381873938,1.13096467,4226.3,4226.2,0.61473]
[1760381874730,1.55648467,4226.3,4226.2,0.61473]
[1760381875438,1.77848467,4226.3,4226.2,0.1892]
[1760381875731,1.77848467,4226.3,4226.2,0.0946]
[1760381876539,1.55648467,4226.3,4226.2,0.61473]
[1760381877027,1.55648467,4226.3,4226.2,0.1892]
[1760381877940,0.54456467,4226.3,4226.2,0.67383]
[1760381878328,0.90366467,4226.3,4226.2,0.67383]
[1760381878838,1.13096467,4226.3,4226.2,0.61473]
[1760381879232,0.3591,4226.8,4226.7,0.42548]
[1760381879438,3.2078,4227.4,4227.3,0.61462]
[1760381879628,3.75231217,4227.4,4227.3,0.67372]
[1760381880639,0.1495805,4228.0,4227.8,0.42536]
[1760381880934,0.0020805,4228.0,4227.9,0.2483]
[1760381881137,0.90564019,4228.0,4227.9,0.2483]
[1760381881441,1.04094019,4228.0,4227.9,0.1892]
[1760381881839,1.26824019,4228.0,4227.9,0.1892]
[1760381882040,1.49024019,4228.0,4227.9,0.1892]
[1760381882239,0.5864,4227.9,4227.8,3.3024]
[1760381882436,1.13085969,4227.9,4227.8,3.3024]
[1760381882834,0.5864,4227.9,4227.8,3.397]
[1760381883539,1.13054053,4227.9,4227.8,3.397]
[1760381883734,1.13054053,4227.9,4227.2,3.2078]
[1760381883735,0.8084,4227.3,4227.2,3.2078]
[1760381883935,0.8084,4227.3,4227.2,3.3024]
[1760381884137,0.5864,4227.3,4227.2,3.397]
[1760381885640,0.1353,4227.5,4227.4,0.2483]
[1760381885641,0.3591,4227.5,4227.4,0.2483]
[1760381886541,0.9437,4227.5,4227.4,0.0946]
[1760381886741,1.3691,4227.5,4227.4,0.0946]
[1760381887945,0.4944,4227.5,4227.4,0.2483]
[1760381888745,0.4944,4227.5,4227.4,0.1892]
[1760381888947,0.9218305,4228.0,4227.9,0.1892]
[1760381889239,1.043882,4228.0,4227.9,0.1892]
[1760381890141,0.0020805,4228.0,4227.9,0.2483]
[1760381892642,0.0020805,4228.0,4227.9,0.1892]
[1760381892841,0.0020805,4228.0,4227.9,0.2483]
[1760381893042,0.0020805,4228.0,4227.9,0.67366]
[1760381893440,0.0020805,4228.0,4227.9,0.91366]
[1760381893645,0.3611805,4228.0,4227.9,0.91366]
[1760381893846,0.4964805,4228.0,4227.9,0.85456]
[1760381894044,0.4964805,4228.0,4227.9,0.91366]
[1760381894244,0.0020805,4228.0,4227.9,0.91366]
[1760381895547,0.7237805,4228.0,4227.9,0.61456]
[1760381895742,1.1491305,4228.0,4227.9,0.61456]
[1760381895946,1.23376,4227.9,4227.8,3.2078]
[1760381896343,1.01177,4227.8,4227.7,0.51998]
[1760381896546,1.01177,4227.8,4227.7,0.61458]
[1760381897043,0.4964805,4228.0,4227.9,0.67366]
[1760381897546,0.4964805,4228.0,4227.9,0.61456]
[1760381898046,1.1491305,4228.0,4227.9,0.1892]
[1760381899049,0.7237805,4228.0,4227.9,0.61456]
[1760381899242,0.0020805,4228.0,4227.9,0.67366]
[1760381899447,0.0020805,4228.0,4227.9,3.88146]
[1760381899847,0.3611805,4228.0,4227.9,3.88146]
[1760381901754,0.0020805,4228.0,4227.9,3.88146]
[1760381903354,0.3582,4228.9,4228.8,0.56887]
[1760381903657,0.1353,4229.0,4228.9,0.56886]
[1760381903851,0.1353,4229.0,4228.9,0.61376]
[1760381904251,0.13837305,4229.0,4228.9,0.61590183]
[1760381904557,0.92182305,4229.0,4228.9,0.14574183]
[1760381905059,1.38182305,4229.0,4228.9,0.00214183]
[1760381905460,1.92861784,4229.0,4228.9,0.00214183]
[1760381905757,0.88531,4228.4,4228.3,3.2078]
[1760381906055,1.24351,4228.4,4228.3,3.2078]
[1760381906655,1.24351,4228.4,4228.3,3.21060698]
[1760381907857,1.24351,4228.4,4228.3,0.00280698]
[1760381908260,1.7913023,4228.4,4228.3,0.00280698]
[1760381908853,5.09931115,4228.4,4228.3,0.00280698]
[1760381910455,4.85931115,4228.4,4228.3,0.00280698]
[1760381910662,1.7913023,4228.4,4228.3,0.14640698]
[1760381911365,0.9059923,4228.4,4228.3,3.77952698]
[1760381911567,0.9059923,4228.4,4228.3,3.82442698]
[1760381911568,0.5477923,4228.4,4228.3,3.82442698]
[1760381911859,0.00307305,4229.0,4228.9,0.1885]
[1760381912065,0.55125172,4229.0,4228.9,0.1885]
[1760381912558,1.33470172,4229.0,4228.9,0.56886]
[1760381912764,1.33470172,4229.0,4228.9,0.1436]
[1760381912965,1.24346,4228.9,4228.8,3.2078]
[1760381913157,1.79163867,4228.9,4228.8,3.2078]
[1760381913559,1.79163867,4228.9,4228.8,3.3514]
[1760381913766,1.56463867,4228.9,4228.8,3.3514]
[1760381913964,1.13937867,4228.9,4228.8,3.3514]
[1760381914166,0.90637867,4228.9,4228.8,3.77667]
[1760381914664,0.54817867,4228.9,4228.8,3.82157]
[1760381915960,0.90637867,4228.9,4228.8,3.82157]
[1760381916262,0.54817867,4228.9,4228.8,3.82157]
[1760381916960,0.00307305,4229.0,4228.9,0.61376]
[1760381917868,0.73257305,4229.0,4228.9,0.42526]
[1760381918069,0.73257305,4229.0,4228.9,0.73706]
[1760381918464,0.73257305,4229.0,4228.9,0.80886]
[1760381918862,1.38482305,4229.0,4228.9,0.3836]
[1760381919159,0.49957305,4229.0,4228.9,0.3836]
[1760381920165,0.00307305,4229.0,4228.9,0.4285]
[1760381920563,0.36127305,4229.0,4228.9,0.4285]
[1760381920763,0.49957305,4229.0,4228.9,0.3836]
[1760381921765,0.95957305,4229.0,4228.9,0.3836]
[1760381922370,0.95957305,4229.0,4228.9,0.24]
[1760381922770,1.38481305,4229.0,4228.9,0.66526]
[1760381922961,1.38481305,4229.0,4228.9,0.73706]
[1760381924570,0.92481305,4229.0,4228.9,0.80886]
[1760381924967,1.38481305,4229.0,4228.8,3.2078]
[1760381925166,1.24351,4228.4,4228.3,3.21060698]
[1760381925366,1.01651,4228.4,4228.3,3.35420698]
[1760381925970,0.3582,4228.9,4228.7,0.0718]
[1760381926168,1.24346,4228.9,4228.8,3.2796]
[1760381926364,1.24346,4228.9,4228.4,0.4253]
[1760381926365,0.42531,4228.4,4228.3,3.21060698]
[1760381926569,1.24351,4228.4,4228.3,3.21060698]
[1760381928877,1.24351,4228.4,4228.3,3.63592698]
[1760381929078,1.24351,4228.4,4228.3,3.21060698]
[1760381930579,4.45131,4228.4,4228.3,0.00280698]
[1760381930878,4.99577665,4228.4,4228.3,0.00280698]
[1760381931676,4.33746665,4228.4,4228.3,0.53852698]
[1760381931977,0.1383,4228.5,4228.4,0.53571]
[1760381931978,0.4949,4228.5,4228.4,0.53571]
[1760381932178,1.03930061,4228.5,4228.4,0.53571]
[1760381932381,0.4949,4228.5,4228.4,0.53571]
[1760381932579,0.7238,4228.5,4228.4,0.53571]
[1760381933784,0.9559,4228.5,4228.4,0.42531]
[1760381933992,1.3812,4228.5,4228.4,0.42531]
[1760381935874,1.20450305,4229.0,4228.4,0.56341]
[1760381935875,0.14137305,4229.0,4228.4,0.56341]
[1760381936180,0.00307305,4229.0,4228.9,0.53046]
[1760381936485,0.70977305,4229.0,4228.9,0.53046]
[1760381936786,1.48624152,4229.0,4228.9,0.47786]
[1760381937484,1.91149152,4229.0,4228.8,3.4478]
[1760381937683,0.7067,4228.5,4228.4,0.77051]
[1760381939281,0.4769,4228.5,4228.4,0.77051]
[1760381939986,0.9388,4228.5,4228.4,0.77051]
[1760381940288,0.7067,4228.5,4228.4,0.77051]
[1760381941087,0.99136,4228.9,4228.8,0.1052]
[1760381941282,0.99136,4228.9,4228.6,0.42528]
[1760381941283,0.88717,4228.7,4228.6,0.47788]
[1760381941489,1.7681667,4228.7,4228.6,0.47788]
[1760381941682,1.1107967,4228.7,4228.6,0.53048]
[1760381942287,0.5661,4228.7,4228.6,0.53048]
[1760381942488,1.34298564,4228.7,4228.6,0.47788]
[1760381943289,1.76825564,4228.7,4228.6,0.0526]
[1760381943483,0.7982,4228.6,4228.5,0.42529]
[1760381943682,1.34298564,4228.6,4228.5,0.47789]
[1760381944289,0.7982,4228.6,4228.5,0.42529]
[1760381944590,1.34297757,4228.6,4228.5,0.42529]
[1760381944791,1.34297757,4228.6,4228.5,0.47789]
[1760381945291,0.7982,4228.6,4228.5,0.53049]
[1760381945487,0.47997305,4229.0,4228.9,0.53045]
[1760381945688,0.00307305,4229.0,4228.9,0.56335]
[1760381948794,0.33937305,4229.0,4228.9,0.56335]
[1760381948993,0.00307305,4229.0,4228.9,0.56335]
[1760381949588,0.47997305,4229.0,4228.9,0.42525]
[1760381950088,0.00307305,4229.0,4228.9,0.56335]
[1760381951095,0.33937305,4229.0,4228.9,0.56335]
[1760381952086,0.00307305,4229.0,4228.9,0.56335]
[1760381956596,0.33937305,4229.0,4228.9,0.56335]
[1760381956798,0.47997305,4229.0,4228.9,0.80335]
[1760381958198,0.00307305,4229.0,4228.9,0.80335]
[1760381960399,0.47997305,4229.0,4228.9,0.77045]
[1760381960800,0.47997305,4229.0,4228.9,0.80335]
[1760381960996,0.00307305,4229.0,4228.9,0.80335]
[1760381961498,0.47997305,4229.0,4228.9,0.77045]
[1760381962309,0.47997305,4229.0,4228.9,0.79155]
[1760381962998,0.71767305,4229.0,4228.9,0.42525]
[1760381963298,1.35802305,4229.0,4228.9,0.24]
[1760381963604,1.20546,4228.9,4228.8,3.2078]
[1760381964293,1.20547,4228.8,4228.7,0.24]
[1760381965094,0.7802,4228.4,4228.3,3.21060698]
[1760381965303,1.20551,4228.4,4228.3,3.21060698]
[1760381965801,1.75071211,4228.4,4228.3,3.21060698]
[1760381966504,1.75071211,4228.4,4228.3,0.00280698]
[1760381969901,1.75071211,4228.4,4227.2,1.28761846]
[1760381969902,1.20561,4227.4,4227.3,3.2078]
[1760381970296,0.7802,4227.4,4227.3,3.70082]
[1760381970699,0.7802,4227.4,4227.3,3.21015273]
[1760381971405,0.7802,4227.4,4227.3,3.63557273]
[1760381971801,0.7802,4227.4,4227.3,3.66937273]
[1760381972006,0.7802,4227.4,4227.3,3.70317273]
[1760381972501,0.1347,4227.5,4227.3,3.70317273]
[1760381972701,0.1347,4227.5,4227.4,0.0887]
[1760381972907,0.6998,4227.5,4227.4,0.0676]
[1760381975910,0.9149,4227.5,4227.4,0.49301]
[1760381977212,0.1347,4228.5,4228.4,0.65411]
[1760381977213,0.8275,4228.5,4228.4,0.65411]
[1760381977515,3.70063415,4228.5,4228.4,0.65411]
[1760381978214,3.70063415,4228.5,4228.4,1.21301]
[1760381978410,0.2377,4228.5,4228.4,1.21301]
[1760381979107,0.5651,4228.5,4228.4,1.21301]
[1760381979303,0.92387305,4229.0,4228.9,0.65406]
[1760381979710,0.56817305,4229.0,4228.9,1.21296]
[1760381979911,0.22,4229.3,4229.2,0.42523]
[1760381980111,0.22,4229.3,4229.2,4.42073]
[1760381980418,0.22,4229.3,4229.2,4.66073]
[1760381981020,0.2223796,4229.3,4229.2,4.66073]
[1760381984615,0.4600796,4229.3,4229.2,4.66073]
[1760381985421,0.2223796,4229.3,4229.2,4.66073]
[1760381985916,1.0025796,4229.3,4229.2,3.95903]
[1760381986223,1.0025796,4229.3,4229.2,0.42523]
[1760381986419,1.4277996,4229.3,4228.7,0.24]
[1760381986722,0.7802,4229.2,4229.1,0.42523]
[1760381987015,0.7802,4229.2,4228.7,0.24]
[1760381987218,0.7802,4228.7,4228.6,3.2078]
[1760381987718,3.83032234,4228.7,4228.6,3.2078]
[1760381988315,3.83032234,4228.7,4228.6,3.7847]
[1760381988528,3.50292234,4228.7,4228.6,4.008]
[1760381989122,3.50292234,4228.7,4228.6,0.8002]
[1760381989721,3.50292234,4228.7,4228.6,0.5769]
[1760381990021,1.22129,4228.6,4228.5,0.4253]
[1760381990221,0.796,4228.4,4228.3,0.3448]
[1760381990426,0.796,4228.4,4228.3,0.77012]
[1760381991020,0.796,4228.4,4228.3,1.00222]
[1760381991428,0.2306,4228.8,4228.7,0.65738]
[1760381991721,3.53984431,4228.8,4228.7,0.8002]
[1760381991919,3.87964431,4228.8,4228.7,0.5769]
[1760381992117,3.96511431,4228.8,4228.6,0.42528]
[1760381992318,0.7696,4228.7,4228.6,0.42528]
[1760381992520,1.19488,4228.7,4228.6,0.42528]
[1760381993122,0.65358,4228.7,4228.6,1.20798]
[1760381993526,1.19488,4228.7,4228.6,1.20798]
[1760381994427,0.4496,4228.7,4228.6,1.20798]
[1760381995218,1.19488,4228.7,4228.6,0.76598]
[1760381995422,0.7696,4228.5,4228.4,0.4253]
[1760381995723,0.2283,4228.7,4228.5,0.1334]
[1760381995922,0.2283,4228.7,4228.6,0.2179]
[1760381996121,0.4496,4228.7,4228.6,0.86729]
[1760381996318,0.7696,4228.7,4228.6,1.20799]
[1760381996719,0.4496,4228.7,4228.6,1.20799]
[1760381997224,0.4496,4228.7,4228.6,0.99009]
[1760381997432,0.7696,4228.7,4228.6,0.99009]
[1760381998127,0.7696,4228.7,4228.6,0.76599]
[1760381999129,0.7696,4228.7,4228.6,0.99009]
[1760382000225,0.7696,4228.7,4228.1,3.2078]
[1760382000226,0.32,4228.5,4228.1,3.4319]
[1760382000432,1.19493,4228.2,4228.1,3.2078]
[1760382000632,0.2283,4228.2,4228.1,4.41584]
[1760382000825,0.4683,4228.4,4228.3,0.7827]
[1760382001133,0.2223796,4229.3,4229.2,1.20793]
[1760382001432,0.2223796,4229.3,4228.7,3.2078]
[1760382001626,0.4496,4228.8,4228.7,4.19788]
[1760382002129,0.7696,4228.8,4228.7,3.63308]
[1760382002336,3.80552617,4228.8,4228.7,3.2078]
[1760382002524,3.80552617,4228.8,4228.1,0.24]
[1760382002525,3.80552617,4228.8,4228.3,0.42531]
[1760382002730,0.24,4229.1,4229.0,1.00064]
[1760382003030,4.04552617,4229.1,4229.0,0.3407]
[1760382003233,4.58960902,4229.1,4229.0,0.3407]
[1760382003422,0.54408285,4229.1,4229.0,0.9161]
[1760382003622,0.2223796,4229.3,4229.2,0.7827]
[1760382003825,0.4506796,4229.3,4229.2,3.9905]
[1760382004033,0.9919796,4229.3,4229.2,3.7726]
[1760382004231,4.60213292,4229.3,4228.3,0.3407]
[1760382004527,0.4496,4227.8,4227.5,0.481]
[1760382004727,0.2283,4228.3,4228.2,0.7827]
[1760382004929,1.55402573,4228.3,4227.5,3.3412]
[1760382005131,1.55402573,4228.3,4227.7,1.20807]
[1760382005132,0.2283,4227.8,4227.7,1.20807]
[1760382005325,0.4496,4228.0,4227.9,0.5648]
[1760382005527,0.42528,4228.7,4228.4,0.4253]
[1760382005835,3.4361,4228.9,4228.8,0.442]
[1760382006035,0.9940021,4228.9,4228.8,0.442]
[1760382006235,0.9940021,4228.9,4228.8,0.7827]
[1760382006536,1.3140021,4228.9,4228.8,0.7827]
[1760382006836,1.3140021,4228.9,4228.8,0.5648]
[1760382007437,0.2223796,4229.3,4229.2,0.3407]
[1760382007637,0.76681867,4229.3,4229.2,3.97372]
[1760382007937,0.2223796,4229.3,4229.2,3.97372]
[1760382008435,1.08681448,4229.3,4229.0,0.1334]
[1760382008627,1.08681448,4229.3,4228.5,0.1334]
[1760382008628,0.32,4229.1,4228.5,0.1334]
[1760382008933,0.4506,4228.5,4227.8,0.42536]
[1760382009139,3.2078,4228.2,4227.8,0.3407]
[1760382009341,0.42537,4227.8,4227.4,0.4254]
[1760382009530,0.32,4227.7,4227.5,0.76609]
[1760382009837,0.42535,4228.0,4227.7,0.42538]
[1760382010037,0.32,4228.0,4227.8,0.76606]
[1760382010234,3.44781387,4227.9,4227.8,0.42536]
[1760382010627,3.55317387,4227.9,4227.5,0.42539]
[1760382010831,0.32,4227.7,4227.5,0.76609]
[1760382011628,0.32,4227.7,4227.6,0.3407]
[1760382011835,3.36781387,4227.9,4227.6,0.3407]
[1760382012027,0.32,4227.4,4227.3,0.00235273]
[1760382012337,4.22860172,4227.4,4227.3,0.00235273]
[1760382013638,3.98860172,4227.4,4227.3,0.00235273]
[1760382014037,4.22860172,4227.4,4227.3,0.00235273]
[1760382014538,0.32,4227.3,4226.7,3.2078]
[1760382014742,0.32,4226.5,4226.3,0.76621]
[1760382014934,0.32,4226.4,4226.3,0.3407]
[1760382015131,0.42551,4226.4,4226.2,3.2078]
[1760382015339,0.32,4226.3,4226.0,0.42554]
[1760382015529,0.00213352,4226.3,4226.1,0.42553]
[1760382015732,3.63922023,4226.2,4226.0,0.42759221]
[1760382015933,3.63922023,4226.2,4226.1,0.3407]
[1760382016142,0.00213352,4226.3,4226.2,0.76623]
[1760382016333,0.00213352,4226.3,4226.2,3.97403]
[1760382016637,0.32,4226.1,4226.0,0.00205221]
[1760382016841,1.06388,4226.0,4225.0,0.3407]
[1760382017040,0.32,4225.1,4224.9,0.42565]
[1760382017230,0.32,4225.8,4224.8,0.3407]
[1760382017538,0.00213352,4226.3,4224.8,0.3407]
[1760382017539,0.00213352,4226.3,4226.2,0.76623]
[1760382017737,0.00213352,4226.3,4226.2,3.97403]
[1760382018042,0.00213352,4226.3,4226.2,3.97639289]
[1760382019638,3.33377001,4226.3,4226.2,0.00236289]
[1760382019841,3.57377001,4226.3,4226.2,0.00236289]
[1760382021241,3.33377001,4226.3,4226.2,0.42789289]
[1760382021538,3.57377001,4226.3,4226.2,0.42789289]
[1760382021740,3.57377001,4226.3,4226.2,0.00236289]
[1760382022834,3.57377001,4226.3,4225.3,0.42561]
[1760382023039,0.3203,4225.8,4225.3,0.42561]
[1760382023345,0.3203,4225.5,4225.3,0.42561]
[1760382023541,0.3203,4225.5,4225.4,0.42561]
[1760382023846,3.03764973,4225.5,4225.4,0.00248946]
[1760382024049,3.03764973,4225.5,4225.4,0.32438946]
[1760382024341,0.4436,4225.5,4225.4,0.00248946]
[1760382024544,0.4436,4225.5,4224.7,3.2078]
[1760382024545,3.3311,4225.5,4224.7,3.2078]
[1760382024846,0.3203,4224.9,4224.8,0.42567]
[1760382025045,3.08500006,4225.5,4225.3,0.42561]
[1760382025246,0.3203,4225.7,4225.5,0.74749]
[1760382025447,0.24,4225.6,4225.5,0.74749]
[1760382025647,3.36049691,4225.6,4225.5,0.74987399]
[1760382026249,3.68079691,4225.6,4225.5,0.74987399]
[1760382026449,3.68079691,4225.6,4225.5,0.42797399]
[1760382028654,3.44079691,4225.6,4225.5,0.74987399]
[1760382028953,3.68079691,4225.6,4225.5,0.74987399]
[1760382030056,3.68079691,4225.6,4225.5,0.32428399]
[1760382030357,4.12379691,4225.6,4225.5,0.00238399]
[1760382031053,0.443,4226.2,4225.7,0.3219]
[1760382031256,0.443,4226.2,4226.1,1.19954]
[1760382031454,0.443,4226.2,4226.0,0.1279]
[1760382031455,0.00213352,4226.3,4226.2,0.74743]
[1760382033563,0.00213352,4226.3,4226.2,3.95523]
[1760382036854,0.32243352,4226.3,4226.2,3.63333]
[1760382037059,0.32243352,4226.3,4226.2,3.95523]
[1760382037255,0.00213352,4226.3,4226.2,3.95523]
[1760382038464,3.2078,4227.6,4226.3,0.3219]
[1760382038664,3.5281,4227.6,4227.5,0.4254]
[1760382038962,7.14468557,4227.6,4227.5,0.4254]
[1760382039459,0.54474137,4227.6,4227.5,4.083]
[1760382039659,0.54719166,4227.6,4227.5,4.083]
[1760382041559,0.54770371,4227.6,4227.5,3.5297]
[1760382041762,0.74573,4227.2,4227.0,0.3219]
[1760382041965,0.86555342,4227.1,4227.0,0.74735]
[1760382042164,0.86905,4227.0,4226.9,3.2078]
[1760382042463,0.42554,4226.1,4225.9,0.42555]
[1760382042668,0.3203,4226.0,4225.9,0.42555]
[1760382042964,3.32642866,4226.0,4225.9,0.42555]
[1760382043164,0.3203,4225.9,4225.7,3.63337]
[1760382043365,0.3203,4225.9,4225.7,0.42557]
[1760382044164,0.3203,4225.9,4225.7,0.74747]
[1760382045261,3.00612866,4226.0,4225.9,0.42556]
[1760382045463,3.00612866,4226.0,4225.9,0.74746]
[1760382045464,3.32642866,4226.0,4225.9,0.74746]
[1760382045665,3.32642866,4226.0,4225.6,1.26651846]
[1760382045666,0.3203,4225.7,4225.6,1.26651846]
[1760382045964,0.3203,4225.6,4225.5,0.00238399]
[1760382046371,3.41606398,4225.6,4225.5,0.00238399]
[1760382046562,3.41606398,4225.6,4225.5,0.32428399]
[1760382046963,3.41606398,4225.6,4225.5,0.00238399]
[1760382047761,0.3203,4226.0,4225.5,0.32428399]
[1760382047963,0.3074,4225.8,4225.5,0.00238399]
[1760382048169,3.11240471,4225.7,4225.5,0.42797399]
[1760382048357,0.42557,4225.8,4225.5,0.42797399]
[1760382048358,0.3074,4225.6,4225.5,0.42797399]
[1760382049472,3.44380762,4225.7,4225.5,0.75727399]
[1760382049766,0.3074,4225.6,4225.5,0.42797399]
[1760382050076,0.3074,4225.6,4225.5,0.00238399]
[1760382050267,0.3074,4225.6,4225.5,0.33168399]
[1760382050861,0.3074,4225.6,4225.5,0.00238399]
[1760382051066,0.3074,4225.0,4224.8,0.42567]
[1760382051270,0.3074,4224.9,4224.7,3.96277]
[1760382051470,0.3074,4224.8,4224.7,3.5371]
[1760382051670,0.3074,4224.8,4224.7,3.2078]
[1760382051867,3.75998703,4224.8,4224.2,3.2078]
[1760382052066,0.3074,4224.6,4224.2,3.20948322]
[1760382052273,0.00286083,4224.6,4224.5,0.4669]
[1760382054475,0.00286083,4224.6,4224.5,0.7069]
[1760382055376,3.63334,4226.1,4225.6,0.3312]
[1760382055583,3.2078,4226.1,4225.9,0.75675]
[1760382055882,0.88391685,4226.0,4225.9,0.42555]
[1760382056286,0.88391685,4226.0,4225.9,0.75675]
[1760382056480,0.88588584,4226.0,4225.9,0.75675]
[1760382056780,0.3387,4225.7,4225.6,0.42558]
[1760382056978,0.5787,4225.7,4225.6,0.42558]
[1760382057178,3.61095689,4225.7,4225.6,0.75678]
[1760382057380,3.27225689,4225.7,4225.6,0.75678]
[1760382058084,0.00196899,4226.0,4225.9,0.42556]
[1760382058382,0.00196899,4226.0,4225.9,0.75676]
[1760382060688,0.00196899,4226.0,4225.9,0.99676]
[1760382061885,0.3387,4225.7,4225.6,0.42559]
[1760382062183,3.48685529,4226.0,4225.9,0.42556]
[1760382062585,3.91240529,4226.0,4225.9,0.42556]
[1760382062786,3.91240529,4226.0,4225.9,0.75676]
[1760382062787,3.14815529,4226.0,4225.9,0.75676]
[1760382063386,0.00196899,4226.0,4225.9,0.75676]
[1760382064889,0.42751899,4226.0,4225.9,0.3312]
[1760382065189,0.3387,4225.9,4225.8,0.42557]
[1760382065385,0.3387,4225.9,4225.5,3.3435]
[1760382065582,0.76433,4225.2,4225.0,3.3435]
[1760382065783,0.42563,4225.2,4225.0,3.63344]
[1760382066082,0.3387,4225.1,4225.0,3.63344]
[1760382066282,0.3387,4225.1,4225.0,0.42564]
[1760382066779,0.76434,4225.1,4225.0,0.42564]
[1760382066977,0.42563,4225.3,4225.2,0.42563]
[1760382067188,0.3387,4225.5,4225.3,0.75682]
[1760382067189,0.76431,4225.5,4225.3,0.75682]
[1760382067382,0.24,4225.4,4225.3,0.75682]
[1760382067583,0.42562,4225.3,4225.1,0.42563]
[1760382067781,0.42563,4225.2,4224.9,0.42565]
[1760382067982,0.3387,4225.0,4224.9,0.42566]
[1760382068288,0.3387,4225.0,4224.5,3.3435]
[1760382068289,6.55391355,4225.2,4224.6,0.3312]
[1760382068590,6.55391355,4225.2,4224.6,1.06423]
[1760382068794,6.97954355,4225.2,4225.1,0.75684]
[1760382068995,6.97954355,4225.2,4225.1,0.3312]
[1760382069205,0.3387,4225.0,4224.9,0.75685]
[1760382069882,0.3387,4225.0,4224.9,0.3312]
[1760382070084,3.2078,4225.2,4224.6,0.3312]
[1760382070286,3.2078,4225.2,4224.5,3.2078]
[1760382070287,0.3387,4224.6,4224.5,3.2078]
[1760382070484,0.5787,4224.6,4224.5,3.2078]
[1760382070684,3.71781253,4224.6,4224.5,3.2078]
[1760382070984,3.2078,4225.2,4224.6,0.3312]
[1760382070985,0.24,4224.9,4224.6,0.3312]
[1760382071187,0.42564,4225.1,4224.9,0.42565]
[1760382071493,0.54623018,4225.0,4224.9,0.75685]
[1760382073384,0.97188018,4225.0,4224.9,0.75685]
[1760382073684,1.31058018,4225.0,4224.9,0.75686]
[1760382074282,0.42567,4224.8,4224.6,0.3312]
[1760382074489,0.42567,4224.8,4224.4,0.3312]
[1760382074490,0.3387,4224.6,4224.4,0.3312]
[1760382074683,0.76439,4224.6,4224.4,0.42571]
[1760382074890,0.76439,4224.6,4224.2,0.00168322]
[1760382074891,0.3387,4224.4,4224.3,0.42571]
[1760382075091,0.3387,4224.4,4224.3,0.75691]
[1760382075290,0.76439,4224.6,4224.4,0.42571]
[1760382075594,3.90634614,4224.6,4224.4,0.75691]
[1760382075792,3.90634614,4224.6,4224.5,0.4257]
[1760382075991,0.4257,4224.5,4224.4,0.75691]
[1760382076192,1.0044,4224.5,4224.4,0.75691]
[1760382076395,4.14635614,4224.5,4224.4,0.75691]
[1760382077394,4.14635614,4224.5,4224.4,0.42571]
[1760382077789,4.17305614,4224.5,4224.4,0.42571]
[1760382078190,4.17305614,4224.5,4224.4,0.75691]
[1760382078390,4.59875614,4224.5,4224.4,0.42571]
[1760382079599,1.21682,4224.3,4224.2,0.00168322]
[1760382079800,0.7911,4223.6,4223.5,3.6747]
[1760382079992,0.7911,4223.6,4223.5,4.1887]
[1760382079993,0.6924,4223.6,4223.5,4.1887]
[1760382080292,0.2255,4223.9,4223.8,0.42577]
[1760382080596,0.93228913,4226.4,4226.2,0.42553]
[1760382080796,0.1274,4228.0,4227.9,0.42536]
[1760382080991,0.1274,4228.5,4228.4,0.42531]
[1760382081299,0.1274,4229.0,4228.9,0.42526]
[1760382081608,3.02876199,4229.0,4228.9,3.63515892]
[1760382081896,0.22,4229.3,4228.9,3.63515892]
[1760382082104,2.29671056,4229.2,4229.0,0.62849772]
[1760382082305,0.22,4229.3,4229.1,0.42524]
[1760382082598,0.22,4229.3,4228.9,3.20989892]
[1760382082599,3.05491056,4229.0,4228.9,3.20989892]
[1760382082992,3.05700376,4229.0,4228.9,3.20989892]
[1760382083701,6.13753832,4229.0,4228.9,0.00209892]
[1760382083996,6.13753832,4229.0,4228.1,3.2078]
[1760382083997,0.1253,4228.5,4228.1,3.2078]
[1760382084209,2.92961056,4228.2,4228.1,3.2078]
[1760382084394,0.6329,4228.2,4228.1,3.2078]
[1760382084698,3.50440661,4228.2,4228.1,3.63314]
[1760382084899,3.50440661,4228.2,4228.1,3.63495236]
[1760382085098,0.3962,4228.2,4228.1,3.64525228]
[1760382085498,0.12028838,4228.2,4228.1,3.64525228]
[1760382087998,0.12028838,4228.2,4228.1,3.21991228]
[1760382089205,0.36228838,4228.2,4228.1,3.21991228]
[1760382090700,0.54561838,4228.2,4228.1,0.01211228]
[1760382090905,0.1253,4227.5,4227.0,3.2078]
[1760382091198,0.1253,4227.5,4225.7,1.06394]
[1760382091199,0.5215,4226.0,4225.9,3.2078]
[1760382091405,0.7582,4226.0,4225.9,3.2078]
[1760382091699,0.5215,4226.0,4225.9,3.2078]
[1760382091891,0.52362942,4226.0,4225.9,3.21019682]
[1760382093497,0.76032942,4226.0,4225.9,3.21019682]
[1760382094098,0.5215,4225.5,4224.9,3.2078]
[1760382094305,0.5215,4225.0,4224.9,3.2078]